bitfinex-derivatives/quotes_ETHF0:USTF0_20260123
["timestamp","ask_amount","ask_price","bid_price","bid_amount"]
[1769208304597,2.4354746,2956.7,2955.1,2.52366934]
[1769208304797,3.31812868,2956.6,2955.1,2.52366934]
[1769208304998,2.4354746,2956.6,2955.1,2.52366934]
[1769208306298,2.4354746,2956.4,2955.1,0.00390255]
[1769208308005,2.4354746,2956.4,2955.1,2.30881744]
[1769208308198,8.89979693,2956.8,2955.1,2.30881744]
[1769208308394,3.48327508,2956.7,2955.1,2.30881744]
[1769208308602,1.17578815,2956.6,2955.1,2.30881744]
[1769208308804,0.88328926,2956.5,2955.1,2.30881744]
[1769208309005,2.30748693,2956.7,2955.1,2.30881744]
[1769208309201,1.17586089,2956.6,2955.1,2.30881744]
[1769208309395,0.88328926,2956.5,2955.1,2.30881744]
[1769208309605,2.30748693,2956.7,2955.1,2.30881744]
[1769208309805,1.17613703,2956.6,2955.1,2.30881744]
[1769208310005,0.88356571,2956.5,2955.1,2.30881744]
[1769208310198,0.88394054,2956.4,2955.1,2.30881744]
[1769208310400,2.30748693,2956.7,2955.1,2.30881744]
[1769208310703,1.17660788,2956.6,2955.1,2.30881744]
[1769208310904,1.17660788,2956.5,2955.1,2.30881744]
[1769208311205,0.88394032,2956.4,2955.1,2.30881744]
[1769208311409,2.30748693,2956.7,2955.1,2.30881744]
[1769208311609,1.17672442,2956.6,2955.1,2.30881744]
[1769208311808,1.17672442,2956.5,2955.1,2.30881744]
[1769208312011,0.88392641,2956.4,2955.1,2.30881744]
[1769208312210,2.30748693,2956.7,2955.1,2.30881744]
[1769208312411,1.1766867,2956.6,2955.1,2.30881744]
[1769208312611,1.1766867,2956.5,2955.1,2.30881744]
[1769208312811,0.88389806,2956.4,2955.1,2.30881744]
[1769208313110,2.30748693,2956.7,2955.1,2.30881744]
[1769208313315,1.17664908,2956.6,2955.1,2.30881744]
[1769208313510,1.17664908,2956.5,2955.1,2.30881744]
[1769208313704,0.88386987,2956.4,2955.1,2.30881744]
[1769208313904,2.30748693,2956.7,2955.1,2.30881744]
[1769208314105,1.17665056,2956.6,2955.1,2.30881744]
[1769208314411,0.88387075,2956.5,2955.1,2.30881744]
[1769208314606,2.30748693,2956.7,2955.1,2.30881744]
[1769208314812,1.17663558,2956.6,2955.1,2.30881744]
[1769208315108,1.17663558,2956.5,2955.1,2.30881744]
[1769208315309,1.17663558,2956.4,2955.1,2.30881744]
[1769208315606,2.30748693,2956.7,2955.1,2.30881744]
[1769208315804,1.17654769,2956.6,2955.2,2.30491489]
[1769208316004,1.17654769,2956.5,2955.2,2.30491489]
[1769208316211,1.17654769,2956.4,2955.2,2.30491489]
[1769208316412,2.30748693,2956.7,2955.2,2.30491489]
[1769208316710,1.1764653,2956.6,2955.2,2.30491489]
[1769208316909,1.1764653,2956.5,2955.2,2.30491489]
[1769208317098,1.1764653,2956.4,2955.2,2.30491489]
[1769208317304,2.30748693,2956.7,2955.2,2.30491489]
[1769208317504,1.17639026,2956.6,2955.2,2.30491489]
[1769208317701,1.17639026,2956.5,2955.2,2.30491489]
[1769208317910,1.17639026,2956.4,2955.2,2.30491489]
[1769208318112,2.30748693,2956.7,2955.2,2.30491489]
[1769208318308,1.17632828,2956.6,2955.2,2.30491489]
[1769208318512,1.17632297,2956.5,2955.2,2.30491489]
[1769208318711,1.17632297,2956.4,2955.2,2.30491489]
[1769208318915,2.30748693,2956.7,2955.2,2.30491489]
[1769208319114,1.17632379,2956.6,2955.2,2.30491489]
[1769208319313,0.88362121,2956.5,2955.2,2.30491489]
[1769208319515,0.88362121,2956.4,2955.2,2.30491489]
[1769208319716,2.30748693,2956.7,2955.2,2.30491489]
[1769208319912,1.1762654,2956.6,2955.2,2.30491489]
[1769208320113,1.1762654,2956.5,2955.2,2.30491489]
[1769208320313,0.88357456,2956.4,2955.2,2.30491489]
[1769208320614,2.30748693,2956.7,2955.2,2.30491489]
[1769208320819,1.17620732,2956.6,2955.2,2.30491489]
[1769208321011,1.17620732,2956.5,2955.2,2.30491489]
[1769208321211,0.88353194,2956.4,2955.2,2.30491489]
[1769208321412,2.30748693,2956.7,2955.2,2.30491489]
[1769208321612,3.48364207,2956.6,2955.2,2.30491489]
[1769208321813,1.17615514,2956.5,2955.2,2.30491489]
[1769208322014,0.88349367,2956.4,2955.2,2.30491489]
[1769208322212,2.30748693,2956.6,2955.2,2.30491489]
[1769208322416,1.17610669,2956.5,2955.2,2.30491489]
[1769208322616,0.88345806,2956.4,2955.2,2.30491489]
[1769208322817,2.30748693,2956.6,2955.2,2.30491489]
[1769208323017,1.17610668,2956.5,2955.2,2.30491489]
[1769208323220,0.88345805,2956.4,2955.2,2.30491489]
[1769208323519,2.30748693,2956.6,2955.2,2.30491489]
[1769208323712,1.1765553,2956.5,2955.2,2.30491489]
[1769208323910,0.88391858,2956.4,2955.2,2.30491489]
[1769208324116,2.30748693,2956.6,2955.2,2.30491489]
[1769208324309,1.17662157,2956.5,2955.2,2.30491489]
[1769208324514,0.88397798,2956.4,2955.2,2.30491489]
[1769208324814,2.30748693,2956.6,2955.2,2.30491489]
[1769208325014,1.17662444,2956.5,2955.2,2.30491489]
[1769208325214,0.88397813,2956.4,2955.2,2.30491489]
[1769208325410,3.19691945,2956.6,2955.2,2.30491489]
[1769208325614,1.17675315,2956.5,2955.2,2.30491489]
[1769208325812,0.8840747,2956.4,2955.2,2.30491489]
[1769208326017,3.19691945,2956.6,2955.2,2.30491489]
[1769208326218,1.17677294,2956.5,2955.2,2.30491489]
[1769208326417,1.17677294,2956.4,2955.2,2.30491489]
[1769208326617,3.19691945,2956.6,2955.2,2.30491489]
[1769208326818,1.17689393,2956.5,2955.2,2.30491489]
[1769208327017,1.17689393,2956.4,2955.2,2.30491489]
[1769208327317,0.88418183,2956.3,2955.2,2.30491489]
[1769208327516,3.19691945,2956.6,2955.2,2.30491489]
[1769208327720,1.1771129,2956.5,2955.2,2.30491489]
[1769208327910,1.1771129,2956.4,2955.2,2.30491489]
[1769208328116,0.88434477,2956.3,2955.2,2.30491489]
[1769208328322,3.19691945,2956.6,2955.2,2.30491489]
[1769208328524,1.17734998,2956.5,2955.2,2.30491489]
[1769208328723,1.17734998,2956.4,2955.2,2.30491489]
[1769208328925,0.88452225,2956.3,2955.2,2.30491489]
[1769208329124,3.19691945,2956.6,2955.2,2.30491489]
[1769208329325,1.17765436,2956.5,2955.2,2.30491489]
[1769208329525,1.17765436,2956.4,2955.2,2.30491489]
[1769208329725,0.88475173,2956.3,2955.2,2.30491489]
[1769208329921,3.19691945,2956.6,2955.2,2.30491489]
[1769208330126,1.17764362,2956.5,2955.2,2.30491489]
[1769208330322,1.17764362,2956.4,2955.2,2.30491489]
[1769208330527,0.88474205,2956.3,2955.2,2.30491489]
[1769208330826,3.19691945,2956.6,2955.2,2.30491489]
[1769208331029,1.17766363,2956.5,2955.2,2.30491489]
[1769208331225,1.17766363,2956.4,2955.2,2.30491489]
[1769208331427,1.17766363,2956.3,2955.2,2.30491489]
[1769208331626,3.19691945,2956.6,2955.2,2.30491489]
[1769208331927,1.17809386,2956.5,2955.2,2.30491489]
[1769208332130,1.17809386,2956.4,2955.2,2.30491489]
[1769208332330,1.17809386,2956.3,2955.2,2.30491489]
[1769208332532,0.88507708,2956.2,2955.2,2.30491489]
[1769208332831,3.19691945,2956.6,2955.2,2.30491489]
[1769208333032,3.73813916,2956.5,2955.1,4.46133507]
[1769208333234,1.17851411,2956.4,2955.1,4.46133507]
[1769208333531,1.17851411,2956.3,2955.1,4.46133507]
[1769208333726,0.88538857,2956.2,2955.1,4.46133507]
[1769208333926,2.55962505,2956.5,2955.1,4.46133507]
[1769208334134,1.17861146,2956.4,2955.2,2.34619223]
[1769208334334,1.17861146,2956.3,2955.2,2.34619223]
[1769208334532,0.88547449,2956.2,2955.2,2.34619223]
[1769208334833,3.44905757,2956.7,2955.2,2.34619223]
[1769208335030,1.17867518,2956.6,2955.2,2.34619223]
[1769208335330,1.17867518,2956.5,2955.2,4.76183355]
[1769208335631,1.17867518,2956.4,2955.2,2.34619223]
[1769208335832,0.88552294,2956.3,2955.2,2.34619223]
[1769208336037,3.44905757,2956.7,2955.2,2.34619223]
[1769208336227,2.55962505,2956.5,2955.2,2.34619223]
[1769208336431,1.17864158,2956.4,2955.2,2.34619223]
[1769208336637,1.17864158,2956.3,2955.2,2.34619223]
[1769208336937,2.55962505,2956.5,2955.2,2.34619223]
[1769208337137,1.17871382,2956.4,2955.2,2.34619223]
[1769208337337,1.17871382,2956.3,2955.2,2.34619223]
[1769208337534,2.55962505,2956.5,2955.2,2.34619223]
[1769208337830,1.17869445,2956.4,2955.2,2.34619223]
[1769208338027,0.88554183,2956.3,2955.1,3.47837639]
[1769208338242,2.55962505,2956.5,2955.2,3.605]
[1769208338431,1.17873754,2956.4,2955.2,3.605]
[1769208338632,0.88557238,2956.3,2955.2,3.605]
[1769208338839,2.55962505,2956.5,2955.2,3.605]
[1769208339039,1.1787317,2956.4,2955.2,3.605]
[1769208339231,0.88556821,2956.3,2955.2,3.605]
[1769208339434,2.55962505,2956.5,2955.2,3.605]
[1769208339634,1.17874825,2956.4,2955.2,3.605]
[1769208339941,0.88557961,2956.3,2955.2,5.95119223]
[1769208340236,2.55962505,2956.5,2955.2,5.95119223]
[1769208340436,1.17878207,2956.4,2955.2,5.95119223]
[1769208340638,0.88560526,2956.3,2955.2,5.95119223]
[1769208340840,2.55962505,2956.5,2955.2,5.95119223]
[1769208341038,1.17878206,2956.4,2955.2,5.95119223]
[1769208341243,0.88560525,2956.3,2955.2,8.36683355]
[1769208341441,2.55962505,2956.5,2955.2,8.36683355]
[1769208341643,1.17877624,2956.4,2955.2,5.95119223]
[1769208341842,0.88560232,2956.3,2955.2,5.95119223]
[1769208342043,2.55962505,2956.5,2955.2,5.95119223]
[1769208342242,1.17881104,2956.4,2955.2,5.95119223]
[1769208342445,0.88562717,2956.3,2955.2,5.95119223]
[1769208342636,2.55962505,2956.5,2955.2,5.95119223]
[1769208342836,1.17884104,2956.4,2955.2,5.95119223]
[1769208343038,0.88564986,2956.3,2955.2,5.95119223]
[1769208343238,2.55962505,2956.5,2955.2,8.36683355]
[1769208343445,1.17887421,2956.4,2955.2,8.36683355]
[1769208343746,1.17887421,2956.3,2955.2,8.36683355]
[1769208343945,2.55962505,2956.5,2955.2,8.36683355]
[1769208344141,1.17887422,2956.4,2955.2,8.36683355]
[1769208344342,1.17887422,2956.3,2955.2,8.36683355]
[1769208344542,2.55962505,2956.5,2955.2,8.36683355]
[1769208344740,1.1789227,2956.4,2955.2,8.36683355]
[1769208344938,1.1789227,2956.3,2955.2,8.36683355]
[1769208345140,2.55962505,2956.5,2955.2,8.36683355]
[1769208345341,1.17889733,2956.4,2955.2,8.36683355]
[1769208345539,0.88568655,2956.3,2955.2,8.36683355]
[1769208345741,2.55962505,2956.5,2955.2,8.36683355]
[1769208345943,1.17886474,2956.4,2955.2,8.36683355]
[1769208346145,0.88565974,2956.3,2955.2,8.36683355]
[1769208346448,2.55962505,2956.5,2955.2,8.36683355]
[1769208346641,1.17886387,2956.4,2955.2,8.36683355]
[1769208346841,0.88566,2956.3,2955.2,8.36683355]
[1769208347037,2.55962505,2956.5,2955.2,8.36683355]
[1769208347244,1.17886318,2956.4,2955.2,8.36683355]
[1769208347440,0.88565951,2956.3,2955.2,8.36683355]
[1769208347642,2.55962505,2956.5,2955.2,8.36683355]
[1769208347845,1.17884794,2956.4,2955.2,8.36683355]
[1769208348145,0.88564812,2956.3,2955.2,8.36683355]
[1769208348345,2.55962505,2956.5,2955.2,8.36683355]
[1769208348546,1.17883574,2956.4,2955.2,8.36683355]
[1769208348748,0.88563904,2956.3,2955.2,8.36683355]
[1769208349052,2.55962505,2956.5,2955.2,8.36683355]
[1769208349241,1.17881325,2956.4,2955.2,8.36683355]
[1769208349446,0.88562298,2956.3,2955.2,8.36683355]
[1769208349645,2.55962505,2956.5,2955.2,8.36683355]
[1769208349846,1.17880433,2956.4,2955.2,8.36683355]
[1769208350047,0.88561315,2956.3,2955.2,8.36683355]
[1769208350353,2.55962505,2956.5,2955.2,8.36683355]
[1769208350652,1.17876061,2956.4,2955.2,8.36683355]
[1769208350852,0.88558026,2956.3,2955.2,8.36683355]
[1769208351055,2.55962505,2956.5,2955.2,8.36683355]
[1769208351248,1.17876059,2956.4,2955.2,8.36683355]
[1769208351444,0.88558024,2956.3,2955.2,8.36683355]
[1769208351653,2.55962505,2956.5,2955.2,8.36683355]
[1769208351956,1.17877116,2956.4,2955.2,8.36683355]
[1769208352256,0.88558767,2956.3,2955.2,8.36683355]
[1769208352455,2.55962505,2956.5,2955.2,8.36683355]
[1769208352649,1.17876229,2956.4,2955.2,8.36683355]
[1769208352849,0.8855814,2956.3,2955.2,8.36683355]
[1769208353053,2.55962505,2956.5,2955.2,8.36683355]
[1769208353244,1.17876453,2956.4,2955.2,8.36683355]
[1769208353443,0.885583,2956.3,2955.2,8.36683355]
[1769208353653,2.55962505,2956.5,2955.2,8.36683355]
[1769208353952,1.17814832,2956.4,2955.2,8.36683355]
[1769208354154,0.88496787,2956.3,2955.2,8.36683355]
[1769208354354,2.55962505,2956.5,2955.2,8.36683355]
[1769208354550,1.17814792,2956.4,2955.2,8.36683355]
[1769208354855,0.88496785,2956.3,2955.2,8.36683355]
[1769208355152,2.55962505,2956.5,2955.2,8.36683355]
[1769208355353,1.17815042,2956.4,2955.2,8.36683355]
[1769208355551,0.88497036,2956.3,2955.2,8.36683355]
[1769208355752,2.55962505,2956.5,2955.2,8.36683355]
[1769208355953,1.17815091,2956.4,2955.2,8.36683355]
[1769208356157,0.88497037,2956.3,2955.2,8.36683355]
[1769208356354,2.55962505,2956.5,2955.2,8.36683355]
[1769208356554,1.17815573,2956.4,2955.2,8.36683355]
[1769208356752,0.884974,2956.3,2955.2,8.36683355]
[1769208357052,2.55962505,2956.5,2955.2,8.36683355]
[1769208357353,1.17815572,2956.4,2955.2,8.36683355]
[1769208357553,0.88497399,2956.3,2955.2,8.36683355]
[1769208357756,2.55962505,2956.5,2955.2,8.36683355]
[1769208358059,1.17817798,2956.4,2955.2,8.36683355]
[1769208358251,0.88499103,2956.3,2955.2,8.36683355]
[1769208358551,2.55962505,2956.5,2955.2,8.36683355]
[1769208358749,1.17820941,2956.4,2955.2,8.36683355]
[1769208358951,1.17820941,2956.3,2955.2,8.36683355]
[1769208359151,2.55962505,2956.5,2955.2,8.36683355]
[1769208359352,1.17823659,2956.4,2955.2,8.36683355]
[1769208359557,1.17823659,2956.3,2955.2,8.36683355]
[1769208359752,2.55962505,2956.5,2955.2,8.36683355]
[1769208359953,1.17824521,2956.4,2955.2,8.36683355]
[1769208360253,1.17824521,2956.3,2955.2,8.36683355]
[1769208360559,2.55962505,2956.5,2955.2,4.76183355]
[1769208360859,1.17827283,2956.4,2955.3,3.674]
[1769208361061,1.17827283,2956.3,2955.3,3.674]
[1769208361359,2.55962505,2956.5,2955.3,3.674]
[1769208361554,1.17831739,2956.4,2955.3,3.674]
[1769208361758,1.17831739,2956.3,2955.3,3.674]
[1769208362059,2.55962505,2956.5,2955.3,3.674]
[1769208362256,1.17831736,2956.4,2955.3,3.674]
[1769208362456,1.17831736,2956.3,2955.3,3.674]
[1769208362657,2.55962505,2956.5,2955.3,3.674]
[1769208362958,1.1783803,2956.4,2955.3,3.674]
[1769208363148,1.1783803,2956.3,2955.3,3.674]
[1769208363352,2.55962505,2956.5,2955.3,3.674]
[1769208363554,1.17845836,2956.4,2955.3,3.674]
[1769208363749,1.17845836,2956.3,2955.3,3.674]
[1769208363956,2.55962505,2956.5,2955.3,3.674]
[1769208364155,1.17845806,2956.4,2955.3,3.674]
[1769208364357,1.17845806,2956.3,2955.3,3.674]
[1769208364557,2.55962505,2956.5,2955.3,3.674]
[1769208364758,1.17857603,2956.4,2955.3,3.674]
[1769208364954,1.17857603,2956.3,2955.3,3.674]
[1769208365159,2.55962505,2956.5,2955.3,3.674]
[1769208365360,1.17857593,2956.4,2955.3,3.674]
[1769208365662,1.17857593,2956.3,2955.3,3.674]
[1769208365861,2.55962505,2956.5,2955.3,3.674]
[1769208366063,1.17857549,2956.4,2955.3,3.674]
[1769208366361,2.55962505,2956.5,2955.3,3.674]
[1769208366362,1.17857549,2956.3,2955.3,3.674]
[1769208366563,2.55962505,2956.5,2955.3,6.08964132]
[1769208366761,1.1785663,2956.4,2955.3,6.08964132]
[1769208366959,1.1785663,2956.3,2955.3,6.08964132]
[1769208367159,2.55962505,2956.5,2955.3,6.08964132]
[1769208367365,1.17857849,2956.4,2955.3,6.08964132]
[1769208367662,1.17857849,2956.3,2955.3,6.08964132]
[1769208367860,2.55962505,2956.5,2955.3,6.08964132]
[1769208368061,1.17858172,2956.4,2955.3,6.08964132]
[1769208368263,1.17858172,2956.3,2955.3,6.08964132]
[1769208368462,2.55962505,2956.5,2955.3,6.08964132]
[1769208368658,1.17858105,2956.4,2955.3,6.08964132]
[1769208368858,0.88529336,2956.3,2955.3,6.08964132]
[1769208369060,2.55962505,2956.5,2955.3,6.08964132]
[1769208369259,1.17858368,2956.4,2955.3,6.08964132]
[1769208369460,0.88529271,2956.3,2955.3,6.08964132]
[1769208369661,2.55962505,2956.5,2955.3,6.08964132]
[1769208369862,1.1785967,2956.4,2955.3,6.08964132]
[1769208370066,1.1785967,2956.3,2955.3,6.08964132]
[1769208370268,0.88943252,2956.7,2955.3,8.49186951]
[1769208370564,1.17860259,2956.6,2955.3,8.49186951]
[1769208370764,1.17860259,2956.5,2955.3,8.49186951]
[1769208370962,1.17860259,2956.4,2955.3,8.49186951]
[1769208371162,1.17860259,2956.3,2955.3,8.49186951]
[1769208371362,0.88943252,2956.7,2955.3,8.49186951]
[1769208371564,0.29329726,2956.6,2955.3,8.49186951]
[1769208371762,1.17861311,2956.5,2955.3,8.49186951]
[1769208371961,1.17861311,2956.4,2955.3,8.49186951]
[1769208372163,1.17861311,2956.3,2955.3,8.49186951]
[1769208372364,0.88943252,2956.7,2955.3,8.49186951]
[1769208372564,1.17862906,2956.6,2955.3,8.49186951]
[1769208372762,1.17862906,2956.5,2955.3,8.49186951]
[1769208372958,1.17862906,2956.4,2955.3,8.49186951]
[1769208373164,1.17862903,2956.3,2955.3,8.49186951]
[1769208373362,0.88943252,2956.7,2955.3,8.49186951]
[1769208373563,1.1786498,2956.6,2955.3,8.49186951]
[1769208373767,1.1786498,2956.5,2955.3,8.49186951]
[1769208373967,1.1786498,2956.4,2955.3,8.49186951]
[1769208374161,1.1786498,2956.3,2955.3,8.49186951]
[1769208374365,0.88943252,2956.7,2955.3,8.49186951]
[1769208374567,1.17867534,2956.6,2955.3,8.49186951]
[1769208374767,1.17867534,2956.5,2955.3,8.49186951]
[1769208374968,1.17867534,2956.4,2955.3,8.49186951]
[1769208375159,1.17867534,2956.3,2955.3,8.49186951]
[1769208375363,0.88943252,2956.7,2955.3,8.49186951]
[1769208375567,1.17867583,2956.6,2955.5,2.40222819]
[1769208375765,1.17867583,2956.5,2955.5,2.40222819]
[1769208375966,0.88536102,2956.4,2955.5,2.40222819]
[1769208376269,6.423,2956.8,2955.5,2.40222819]
[1769208376463,1.17833294,2956.7,2955.5,2.40222819]
[1769208376660,1.17833294,2956.6,2955.8,2.40222819]
[1769208376866,6.423,2956.8,2955.8,4.81786951]
[1769208377265,0.00506603,2957.0,2955.9,2.40222819]
[1769208377960,0.00506603,2957.0,2956.2,0.00507468]
[1769208388182,0.00506603,2957.0,2956.2,2.40730287]
[1769208410491,2.52320996,2957.8,2956.2,2.40730287]
[1769208410687,0.88389895,2957.7,2956.4,2.41564132]
[1769208410893,2.52320996,2957.8,2956.5,2.58496132]
[1769208411093,0.88389384,2957.7,2956.5,2.58496132]
[1769208411294,2.52320996,2957.8,2956.5,0.16932]
[1769208411497,0.88373474,2957.7,2956.5,0.16932]
[1769208411695,2.52320996,2957.8,2956.5,0.16932]
[1769208411998,2.52320996,2957.8,2956.5,2.58496132]
[1769208416302,2.52320996,2957.8,2956.5,0.16932]
[1769208416600,2.52320996,2957.8,2956.5,2.68386609]
[1769208419305,0.00417107,2957.9,2956.6,4.93018741]
[1769208426217,0.00417107,2957.9,2956.6,2.51454609]
[1769208426513,0.00417107,2957.9,2956.6,4.93018741]
[1769208429615,0.00417107,2957.9,2956.7,2.40327316]
[1769208434621,0.00417107,2957.9,2956.7,4.98822448]
[1769208434820,0.00417107,2957.9,2956.8,4.81891448]
[1769208436525,0.00417107,2957.9,2956.9,2.40327316]
[1769208436726,2.40117446,2959.2,2957.7,2.40327316]
[1769208436924,1.17534185,2959.1,2957.7,2.40327316]
[1769208437224,1.17534185,2959.0,2958.1,0.00507468]
[1769208437428,0.8828044,2958.9,2958.1,0.00507468]
[1769208437727,0.00308171,2958.9,2958.1,0.00917717]
[1769208438824,0.16917,2959.3,2958.1,0.00917717]
[1769208439034,1.1740183,2959.2,2958.1,0.00917717]
[1769208439329,1.1740183,2959.1,2958.1,0.00917717]
[1769208439530,0.88182337,2959.0,2958.1,0.00917717]
[1769208439823,2.5752451,2959.0,2958.1,0.00917717]
[1769208440025,3.45406051,2958.9,2958.1,0.00917717]
[1769208440226,2.5724973,2958.8,2958.1,0.00917717]
[1769208451335,0.0027478,2959.0,2958.1,0.00917717]
[1769208451738,0.0027478,2959.0,2958.1,0.89708224]
[1769208462360,0.88124429,2958.9,2958.1,0.89708224]
[1769208462560,0.0027478,2959.0,2958.1,0.89708224]
[1769208464465,0.88199125,2958.9,2958.1,0.89708224]
[1769208464661,0.0027478,2959.0,2958.1,0.89708224]
[1769208464857,0.88199126,2958.9,2958.1,0.89708224]
[1769208465057,0.0027478,2959.0,2958.1,0.89708224]
[1769208465253,1.17463075,2958.9,2958.1,0.89708224]
[1769208465457,0.0027478,2959.0,2958.1,0.89708224]
[1769208465660,1.17503561,2958.9,2958.1,0.89708224]
[1769208465862,0.0027478,2959.0,2958.1,0.89708224]
[1769208466166,1.17503624,2958.9,2958.1,0.89708224]
[1769208466365,0.88312268,2958.8,2958.1,0.89708224]
[1769208466569,0.0027478,2959.0,2958.1,0.89708224]
[1769208466764,1.17600279,2958.9,2958.1,0.89708224]
[1769208467065,0.8831224,2958.8,2958.1,0.89708224]
[1769208467266,0.0027478,2959.0,2958.1,0.89708224]
[1769208467465,1.1759748,2958.9,2958.1,0.89708224]
[1769208467657,0.88310138,2958.8,2958.1,0.89708224]
[1769208467857,0.0027478,2959.0,2958.1,0.89708224]
[1769208468057,1.17597486,2958.9,2958.1,0.89708224]
[1769208468257,0.88310142,2958.8,2958.1,0.89708224]
[1769208468454,0.0027478,2959.0,2958.1,0.89708224]
[1769208468658,1.17595208,2958.9,2958.1,0.89708224]
[1769208468970,0.88308428,2958.8,2958.1,0.89708224]
[1769208469169,0.0027478,2959.0,2958.1,0.89708224]
[1769208469369,1.17593624,2958.9,2958.1,0.89708224]
[1769208469569,0.88307238,2958.8,2958.1,0.89708224]
[1769208469868,0.0027478,2959.0,2958.1,0.89708224]
[1769208470058,1.17597197,2958.9,2958.1,0.89708224]
[1769208470257,1.17597197,2958.8,2958.1,0.89708224]
[1769208470466,0.0027478,2959.0,2958.1,0.89708224]
[1769208470667,1.17598681,2958.9,2958.1,0.89708224]
[1769208470875,1.17598681,2958.8,2958.1,0.89708224]
[1769208471063,0.0027478,2959.0,2958.1,0.89708224]
[1769208471262,1.17598681,2958.9,2958.1,0.89708224]
[1769208471565,1.17598681,2958.8,2958.1,0.89708224]
[1769208471765,0.0027478,2959.0,2958.1,0.89708224]
[1769208471963,1.17600757,2958.9,2958.1,0.89708224]
[1769208472263,1.17600757,2958.8,2958.1,0.89708224]
[1769208472462,0.0027478,2959.0,2958.1,0.89708224]
[1769208472656,1.1760282,2958.9,2958.1,0.89708224]
[1769208472863,1.1760282,2958.8,2958.1,0.89708224]
[1769208473055,0.0027478,2959.0,2958.1,0.89708224]
[1769208473259,1.17602803,2958.9,2958.1,0.89708224]
[1769208473456,1.17602803,2958.8,2958.1,0.89708224]
[1769208473660,0.0027478,2959.0,2958.1,0.89708224]
[1769208473859,1.1741291,2958.9,2958.1,0.89708224]
[1769208474065,1.1741291,2958.8,2958.1,0.89708224]
[1769208474364,0.0027478,2959.0,2958.1,0.89708224]
[1769208474559,1.17415382,2958.9,2958.1,0.89708224]
[1769208474763,1.17415382,2958.8,2958.1,0.89708224]
[1769208474962,0.0027478,2959.0,2958.1,0.89708224]
[1769208475169,1.17415354,2958.9,2958.1,0.89708224]
[1769208475370,1.17415354,2958.8,2958.1,0.89708224]
[1769208475669,0.0027478,2959.0,2958.1,0.89708224]
[1769208475870,1.1741842,2958.9,2958.1,0.89708224]
[1769208476070,1.1741842,2958.8,2958.1,0.89708224]
[1769208476367,0.0027478,2959.0,2958.1,0.89708224]
[1769208476671,1.17422004,2958.9,2958.1,0.89708224]
[1769208476873,1.17422004,2958.8,2958.1,0.89708224]
[1769208477067,0.0027478,2959.0,2958.1,0.89708224]
[1769208477365,1.17421995,2958.9,2958.1,0.89708224]
[1769208477559,0.0027478,2959.0,2958.1,0.89708224]
[1769208477560,1.17421995,2958.8,2958.1,0.89708224]
[1769208477765,0.0027478,2959.0,2958.4,0.88790507]
[1769208478161,2.5410373,2959.7,2958.7,0.88790507]
[1769208478374,1.1741863,2959.6,2958.7,0.88790507]
[1769208478570,1.1741863,2959.5,2958.7,0.88790507]
[1769208478772,1.1741863,2959.4,2958.7,0.88790507]
[1769208478974,1.17418008,2959.3,2958.7,0.88790507]
[1769208479271,1.17418008,2959.2,2958.7,0.88790507]
[1769208479468,1.17418008,2959.1,2958.7,0.88790507]
[1769208479672,0.00425291,2959.3,2958.7,0.88790507]
[1769208479975,1.17380735,2959.2,2958.7,0.88790507]
[1769208480171,1.17380735,2959.1,2958.7,0.88790507]
[1769208480372,0.00425291,2959.3,2958.7,0.88790507]
[1769208480671,1.17383847,2959.2,2958.7,0.88790507]
[1769208480873,1.17383847,2959.1,2958.7,0.88790507]
[1769208481065,0.00425291,2959.3,2958.7,0.88790507]
[1769208489676,6.423,2960.0,2958.7,0.88790507]
[1769208489978,10.21181731,2960.2,2958.7,0.88790507]
[1769208490775,10.21440825,2960.2,2958.7,0.88790507]
[1769208492970,1.16553794,2960.1,2958.7,0.88790507]
[1769208493174,1.16553794,2960.0,2958.7,0.88790507]
[1769208493472,1.16553794,2959.9,2958.7,0.88790507]
[1769208493772,1.16553794,2959.8,2958.7,0.88790507]
[1769208493977,1.16553794,2959.7,2958.7,0.88790507]
[1769208494168,0.87551464,2959.6,2958.7,0.88790507]
[1769208494371,10.21440825,2960.2,2958.7,0.88790507]
[1769208494576,1.16526187,2960.1,2958.7,0.88790507]
[1769208494776,1.16526187,2960.0,2958.7,0.88790507]
[1769208494977,1.16526187,2959.9,2958.7,0.88790507]
[1769208495278,1.16526187,2959.8,2958.7,0.88790507]
[1769208495480,1.16526187,2959.7,2958.7,0.88790507]
[1769208495778,10.21440825,2960.2,2958.7,3.34124835]
[1769208495978,1.16515519,2960.1,2958.8,2.45334328]
[1769208496279,1.16515519,2960.0,2958.8,2.45334328]
[1769208496477,1.16515519,2959.9,2958.8,2.45334328]
[1769208496777,1.16515519,2959.8,2958.8,2.45334328]
[1769208496975,1.16515519,2959.7,2959.0,0.88790507]
[1769208497278,9.05107838,2960.2,2959.0,0.88790507]
[1769208497474,1.16497364,2960.1,2959.0,0.88790507]
[1769208497779,1.16497364,2960.0,2959.0,0.88790507]
[1769208497976,1.16497364,2959.9,2959.0,0.88790507]
[1769208498180,2.62807838,2960.2,2959.0,0.88790507]
[1769208498377,1.164863,2960.1,2959.0,0.88790507]
[1769208498678,2.62807838,2960.2,2959.0,0.88790507]
[1769208498877,1.16466981,2960.1,2959.0,0.88790507]
[1769208499071,2.62807838,2960.2,2959.0,0.88790507]
[1769208499272,2.62548744,2960.0,2958.7,1.05710507]
[1769208505384,0.87475939,2959.9,2958.7,1.05710507]
[1769208505584,2.62548744,2960.0,2958.7,1.05710507]
[1769208505784,0.87474968,2959.9,2958.7,1.05710507]
[1769208505986,2.62548744,2960.0,2958.7,1.05710507]
[1769208506184,0.87474968,2959.9,2958.7,1.05710507]
[1769208506387,2.62548744,2960.0,2958.7,1.05710507]
[1769208506580,0.87491237,2959.9,2958.7,1.05710507]
[1769208506782,2.62548744,2960.0,2958.7,1.05710507]
[1769208506981,0.87491237,2959.9,2958.7,0.1692]
[1769208507187,2.62548744,2960.0,2958.7,0.1692]
[1769208507381,0.87512495,2959.9,2958.7,2.62254328]
[1769208507582,0.00259094,2960.2,2958.7,2.62254328]
[1769208507783,1.16503525,2960.1,2958.7,2.62254328]
[1769208508083,1.16503525,2960.0,2958.7,2.62254328]
[1769208508287,0.00259094,2960.2,2958.7,2.62254328]
[1769208508482,1.16510461,2960.1,2958.7,2.62254328]
[1769208508682,0.87512292,2960.0,2958.7,2.62254328]
[1769208508884,0.00259094,2960.2,2958.7,2.62254328]
[1769208509084,1.16508118,2960.1,2958.8,3.886]
[1769208509391,0.87510622,2960.0,2958.9,2.45334328]
[1769208509588,0.00259094,2960.2,2958.9,2.45334328]
[1769208509783,1.16515073,2960.1,2958.9,2.45334328]
[1769208509986,0.87515874,2960.0,2958.9,2.45334328]
[1769208510188,0.00259094,2960.2,2958.9,2.45334328]
[1769208510389,0.87515853,2960.1,2958.9,2.45334328]
[1769208510589,0.00259094,2960.2,2958.9,2.45334328]
[1769208510890,0.87512955,2960.1,2958.9,2.45334328]
[1769208511090,0.00259094,2960.2,2958.9,2.45334328]
[1769208511291,1.16514487,2960.1,2958.9,2.45334328]
[1769208511493,0.00259094,2960.2,2958.9,2.45334328]